bitfinex/quotes_SOLUSD_20250111
["timestamp","ask_amount","ask_price","bid_price","bid_amount"]
[1736563756569,0.80232774,187.19,187.12,23.776884]
[1736563756742,0.80232774,187.2,187.12,23.776884]
[1736563756947,8.93698323,187.14,187.12,240.676884]
[1736563757154,8.93698323,187.13,187.12,240.676884]
[1736563758861,8.93698323,187.14,187.12,240.676884]
[1736563760786,4.03698323,187.14,187.12,240.676884]
[1736563763295,8.93698323,187.13,187.12,240.676884]
[1736563763500,8.93698323,187.13,187.12,216.9]
[1736563763986,8.93698323,187.13,187.12,240.676884]
[1736563768204,8.93698323,187.13,187.12,105.076884]
[1736563771780,8.93698323,187.13,187.12,81.3]
[1736563775906,8.93698323,187.13,187.1,81.3]
[1736563776205,8.93698323,187.13,187.05,54.4792]
[1736563776206,44.68491615,187.11,187.05,129.44]
[1736563776382,8.93698323,187.06,187.05,129.44]
[1736563777402,8.93698323,187.06,187.05,153.216884]
[1736563779610,13.1136,187.16,187.06,23.776884]
[1736563779815,8.93698323,187.07,187.06,240.676884]
[1736563782708,8.93698323,187.07,187.06,216.9]
[1736563783092,8.93698323,187.07,187.06,81.3]
[1736563783515,8.93698323,187.07,187.0,275.9192]
[1736563783697,8.93698323,187.02,187.0,275.9192]
[1736563784111,8.93698323,187.02,187.01,23.776884]
[1736563784309,8.93698323,187.03,187.01,241.47878274]
[1736563784622,8.93698323,187.04,187.01,245.216884]
[1736563785328,8.93698323,187.04,187.03,43.776884]
[1736563789119,8.93698323,187.04,187.03,260.676884]
[1736563789501,8.93698323,187.04,187.03,216.9]
[1736563789907,8.93698323,187.04,187.03,240.676884]
[1736563797416,8.93698323,187.04,187.03,216.9]
[1736563801138,8.93698323,187.04,187.03,81.3]
[1736563804641,1.6096,187.1,187.04,23.776884]
[1736563804845,8.93698323,187.05,187.04,105.076884]
[1736563808147,8.93698323,187.05,187.04,81.3]
[1736563822441,35.74793292,187.11,187.05,23.776884]
[1736563822633,8.93698323,187.06,187.05,105.076884]
[1736563826174,2.41062774,187.15,187.05,240.676884]
[1736563826344,8.93698323,187.1,187.07,23.776884]
[1736563826673,8.93698323,187.09,187.07,240.676884]
[1736563827962,1.6083,187.15,187.07,240.676884]
[1736563828168,0.80232774,187.19,187.11,105.076884]
[1736563828332,8.93698323,187.14,187.11,240.676884]
[1736563828538,8.93698323,187.13,187.11,240.676884]
[1736563829236,8.93698323,187.12,187.11,240.676884]
[1736563831447,8.93698323,187.13,187.11,240.676884]
[1736563831647,8.93698323,187.12,187.11,240.676884]
[1736563832465,8.93698323,187.12,187.11,216.9]
[1736563832856,44.68491615,187.12,187.11,81.3]
[1736563836964,44.68491615,187.12,187.06,81.3]
[1736563837166,8.93698323,187.07,187.06,81.3]
[1736563839067,8.43698323,187.07,187.06,81.3]
[1736563839572,1.6443,187.14,187.06,81.3]
[1736563839781,8.93698323,187.07,187.06,81.3]
[1736563871217,0.80232774,187.11,187.07,23.776884]
[1736563871429,8.93698323,187.13,187.09,23.776884]
[1736563871597,8.93698323,187.13,187.09,240.676884]
[1736563872122,8.93698323,187.12,187.09,240.676884]
[1736563874325,8.93698323,187.1,187.09,240.676884]
[1736563874524,8.93698323,187.1,187.09,216.9]
[1736563874906,0.80232774,187.14,187.09,81.3]
[1736563875110,8.93698323,187.11,187.1,240.676884]
[1736563876117,2.43772774,187.19,187.1,240.676884]
[1736563876324,8.93698323,187.13,187.1,240.676884]
[1736563876531,8.93698323,187.12,187.1,240.676884]
[1736563876708,8.93698323,187.11,187.1,240.676884]
[1736563880516,8.93698323,187.12,187.1,240.676884]
[1736563884237,8.93698323,187.11,187.1,240.676884]
[1736563885636,8.93698323,187.11,187.1,216.9]
[1736563885847,8.93698323,187.11,187.1,81.3]
[1736563886039,44.68491615,187.11,187.1,81.3]
[1736563896752,8.93698323,187.11,187.1,81.3]
[1736563899051,7.96644802,187.16,187.1,81.3]
[1736563899243,8.93698323,187.11,187.1,81.3]
[1736563901653,35.74793292,187.2,187.1,81.3]
[1736563901957,8.93698323,187.12,187.1,240.676884]
[1736563902630,8.93698323,187.11,187.1,240.676884]
[1736563903238,0.80232774,187.19,187.1,240.676884]
[1736563903448,8.93698323,187.11,187.1,240.676884]
[1736563907059,8.93698323,187.11,187.1,216.9]
[1736563908246,44.68491615,187.11,187.1,216.9]
[1736563908836,44.68491615,187.11,187.1,81.3]
[1736563913175,44.68491615,187.11,187.04,224.8855]
[1736563913465,8.93698323,187.06,187.04,224.8855]
[1736563913650,8.93698323,187.06,187.05,23.776884]
[1736563914447,8.93698323,187.06,187.04,89.2855]
[1736563916173,8.93698323,187.05,187.04,218.54]
[1736563916347,8.93698323,187.05,187.04,216.9]
[1736563917949,8.93698323,187.05,187.0,81.3]
[1736563918152,8.93698323,187.01,187.0,81.3]
[1736563919179,8.93698323,187.01,187.0,105.076884]
[1736563919475,8.93698323,187.02,187.0,240.676884]
[1736563920252,8.93698323,187.03,187.01,240.676884]
[1736563920465,8.93698323,187.04,187.01,240.676884]
[1736563922158,8.93698323,187.03,187.01,240.676884]
[1736563923660,0.80232774,187.13,187.03,23.776884]
[1736563923866,8.93698323,187.07,187.03,240.676884]
[1736563924866,8.93698323,187.06,187.03,240.676884]
[1736563925567,8.93698323,187.05,187.03,240.676884]
[1736563925778,8.93698323,187.04,187.03,240.676884]
[1736563926474,8.93698323,187.04,187.03,216.9]
[1736563929913,8.93698323,187.04,187.03,81.3]
[1736563945265,8.93698323,187.04,187.03,105.076884]
[1736563947946,8.93698323,187.04,187.03,240.676884]
[1736563964356,8.93698323,187.04,187.03,216.9]
[1736563965258,0.80232774,187.08,187.03,216.9]
[1736563965553,8.93698323,187.04,187.03,216.9]
[1736563966061,8.93698323,187.04,187.03,81.3]
[1736563976255,35.74793292,187.11,187.03,240.676884]
[1736563976541,8.93698323,187.04,187.03,240.676884]
[1736563976765,8.93698323,187.05,187.03,240.676884]
[1736563977843,2.33512774,187.14,187.04,241.4786781]
[1736563978042,117.39454594,187.24,187.08,240.676884]
[1736563978043,8.93698323,187.09,187.08,240.676884]
[1736563978269,8.93698323,187.1,187.08,240.676884]
[1736563979062,8.93698323,187.09,187.08,240.676884]
[1736563979451,6.14482774,187.18,187.08,240.676884]
[1736563979772,8.93698323,187.11,187.08,240.676884]
[1736563979983,8.93698323,187.11,187.1,43.776884]
[1736563981788,8.93698323,187.11,187.1,23.776884]
[1736563983203,8.93698323,187.11,187.08,216.9]
[1736563983404,8.93698323,187.09,187.08,240.676884]
[1736563986782,11.14482774,187.18,187.08,240.676884]
[1736563986991,8.93698323,187.1,187.08,240.676884]
[1736563987907,8.93698323,187.09,187.08,240.676884]
[1736563991801,8.93698323,187.1,187.08,240.676884]
[1736563994116,6.14482774,187.18,187.08,240.676884]
[1736563994321,8.93698323,187.1,187.08,240.676884]
[1736563996402,8.93698323,187.11,187.09,240.676884]
[1736564001527,8.93698323,187.1,187.09,240.676884]
[1736564001901,8.93698323,187.11,187.09,240.676884]
[1736564007226,8.93698323,187.1,187.09,240.676884]
[1736564010833,8.93698323,187.1,187.09,81.3]
[1736564013640,6.14482774,187.18,187.09,81.3]
[1736564013851,8.93698323,187.1,187.09,81.3]
[1736564014642,8.93698323,187.11,187.09,240.676884]
[1736564016261,6.14482774,187.18,187.09,240.676884]
[1736564016551,8.93698323,187.11,187.09,240.676884]
[1736564017444,8.93698323,187.11,187.1,23.776884]
[1736564017767,8.93698323,187.13,187.1,240.676884]
[1736564018235,8.93698323,187.12,187.1,240.676884]
[1736564019142,8.93698323,187.11,187.1,240.676884]
[1736564019352,8.93698323,187.11,187.1,216.9]
[1736564022746,8.93698323,187.11,187.1,81.3]
[1736564026744,6.14522774,187.17,187.1,81.3]
[1736564026944,8.93698323,187.11,187.1,81.3]
[1736564031760,6.14522774,187.17,187.1,81.3]
[1736564031761,2.45862774,187.19,187.11,23.776884]
[1736564031934,8.93698323,187.13,187.11,240.676884]
[1736564033052,8.93698323,187.12,187.11,240.676884]
[1736564037566,8.93698323,187.12,187.11,216.9]
[1736564037765,8.93698323,187.12,187.11,81.3]
[1736564044243,5.3425,187.18,187.11,81.3]
[1736564044444,8.93698323,187.12,187.11,81.3]
[1736564080074,6.14482774,187.18,187.11,81.3]
[1736564080478,8.93698323,187.12,187.11,81.3]
[1736564082287,6.14482774,187.18,187.11,81.3]
[1736564082483,8.93698323,187.12,187.11,81.3]
[1736564094734,0.80232774,187.2,187.12,23.776884]
[1736564094904,8.93698323,187.15,187.12,23.776884]
[1736564095303,8.93698323,187.14,187.12,105.076884]
[1736564095512,8.93698323,187.15,187.12,240.676884]
[1736564100420,0.80232774,187.24,187.15,23.776884]
[1736564100614,8.93698323,187.19,187.15,240.676884]
[1736564100907,8.93698323,187.19,187.17,23.776884]
[1736564102032,8.93698323,187.19,187.16,23.776884]
[1736564102238,8.93698323,187.17,187.16,105.076884]
[1736564102736,8.93698323,187.17,187.16,81.3]
[1736564115538,5.3412,187.23,187.16,81.3]
[1736564115765,8.93698323,187.17,187.16,81.3]
[1736564117065,0.80232774,187.22,187.16,81.3]
[1736564117370,8.93698323,187.17,187.16,81.3]
[1736564119650,0.80232774,187.25,187.16,240.676884]
[1736564119851,8.93698323,187.18,187.16,240.676884]
[1736564120043,8.93698323,187.17,187.16,240.676884]
[1736564123689,0.80232774,187.25,187.16,240.676884]
[1736564124183,8.93698323,187.18,187.16,240.676884]
[1736564124680,0.80232774,187.25,187.16,240.676884]
[1736564124882,8.93698323,187.18,187.16,240.676884]
[1736564125597,8.93698323,187.18,187.17,23.776884]
[1736564128216,2.94679954,187.26,187.17,240.676884]
[1736564128370,8.93698323,187.18,187.17,240.676884]
[1736564129806,2.94679954,187.26,187.17,240.676884]
[1736564130011,8.93698323,187.18,187.17,240.676884]
[1736564130501,8.93698323,187.19,187.17,240.676884]
[1736564130883,8.93698323,187.2,187.19,240.676884]
[1736564140818,5.3401,187.27,187.19,240.676884]
[1736564141114,8.93698323,187.21,187.19,240.676884]
[1736564141308,8.93698323,187.2,187.19,240.676884]
[1736564141719,8.93698323,187.21,187.19,240.676884]
[1736564142218,7.71792774,187.31,187.23,23.776884]
[1736564142513,0.80232774,187.33,187.23,241.47784085]
[1736564142690,2.09865714,187.35,187.23,241.47784085]
[1736564142691,8.93698323,187.28,187.26,20.0]
[1736564142896,5.3379,187.34,187.26,101.3]
[1736564143100,8.93698323,187.28,187.26,236.9]
[1736564145520,8.93698323,187.27,187.26,260.676884]
[1736564148914,1.5144,187.36,187.27,240.676884]
[1736564149117,8.93698323,187.29,187.27,240.676884]
[1736564151503,8.93698323,187.29,187.28,24.57754581]
[1736564151726,35.74793292,187.38,187.29,23.776884]
[1736564152026,8.93698323,187.31,187.29,245.196884]
[1736564153922,8.93698323,187.3,187.29,245.196884]
[1736564154805,0.80232774,187.38,187.29,245.196884]
[1736564155122,8.93698323,187.3,187.29,245.196884]
[1736564155426,0.80232774,187.39,187.29,245.196884]
[1736564155626,8.93698323,187.3,187.29,245.196884]
[1736564156239,35.74793292,187.38,187.32,20.0]
[1736564156526,8.93698323,187.33,187.32,101.3]
[1736564157220,8.93698323,187.33,187.32,125.076884]
[1736564158922,8.93698323,187.33,187.32,101.3]
[1736564159229,8.93698323,187.33,187.32,81.3]
[1736564162111,8.93698323,187.33,187.3,135.6]
[1736564162320,8.93698323,187.31,187.29,81.3]
[1736564162630,8.93698323,187.3,187.29,81.3]
[1736564167537,8.93698323,187.31,187.29,105.076884]
[1736564167729,8.93698323,187.3,187.29,105.076884]
[1736564169951,8.93698323,187.32,187.3,240.676884]
[1736564171150,8.93698323,187.33,187.3,240.676884]
[1736564171329,8.93698323,187.33,187.32,43.776884]
[1736564173952,5.336,187.41,187.32,260.676884]
[1736564174151,8.93698323,187.34,187.32,260.676884]
[1736564174847,8.93698323,187.33,187.32,260.676884]
[1736564175434,8.93698323,187.33,187.32,236.9]
[1736564175751,8.93698323,187.33,187.32,216.9]
[1736564177773,8.93698323,187.33,187.28,81.3]
[1736564178064,8.93698323,187.29,187.28,81.3]
[1736564178447,44.68491615,187.29,187.27,135.6]
[1736564178647,8.93698323,187.28,187.27,135.6]
[1736564179567,8.93698323,187.28,187.25,48.1]
[1736564179765,8.93698323,187.26,187.25,48.1]
[1736564180958,8.93698323,187.26,187.2,216.9]
[1736564181267,8.93698323,187.21,187.2,216.9]
[1736564181642,8.93698323,187.21,187.2,240.676884]
[1736564182257,8.93698323,187.22,187.2,240.676884]
[1736564182992,8.93698323,187.21,187.2,240.676884]
[1736564184176,8.93698323,187.22,187.2,240.676884]
[1736564185796,35.74793292,187.29,187.24,20.0]
[1736564186177,35.74793292,187.29,187.22,23.776884]
[1736564186495,8.93698323,187.23,187.22,240.676884]
[1736564192497,8.93698323,187.23,187.22,216.9]
[1736564196503,8.93698323,187.23,187.22,81.3]
[1736564197200,8.93698323,187.23,187.22,105.076884]
[1736564202319,8.93698323,187.23,187.22,240.676884]
[1736564210423,8.93698323,187.23,187.22,216.9]
[1736564214318,8.93698323,187.23,187.16,4.52]
[1736564214319,8.93698323,187.23,187.18,81.3]
[1736564214499,8.93698323,187.19,187.18,81.3]
[1736564215619,8.93698323,187.19,187.18,86.652]
[1736564215825,8.93698323,187.19,187.18,81.3]
[1736564218025,8.93698323,187.19,187.16,135.6]
[1736564218229,8.93698323,187.17,187.16,135.6]
[1736564218616,8.93698323,187.17,187.15,129.4]
[1736564218617,8.93698323,187.17,187.15,48.1]
[1736564218821,8.93698323,187.16,187.15,48.1]
[1736564223433,8.93698323,187.16,187.1,216.9]
[1736564223737,8.93698323,187.11,187.1,240.676884]
[1736564229551,8.93698323,187.11,187.1,81.3]
[1736564229721,44.68491615,187.11,187.1,81.3]
[1736564230062,44.68491615,187.11,187.08,216.9]
[1736564230218,8.93698323,187.09,187.08,216.9]
[1736564230851,8.93698323,187.09,187.08,81.3]
[1736564233957,8.93698323,187.09,187.04,81.3]
[1736564234134,8.93698323,187.05,187.04,81.3]
[1736564237467,8.93698323,187.05,187.02,129.42]
[1736564237646,8.93698323,187.03,187.02,129.42]
[1736564240262,0.80232774,187.1,187.02,129.42]
[1736564240573,8.93698323,187.03,187.02,129.42]
[1736564242553,2.97853034,187.1,187.02,129.42]
[1736564242752,8.93698323,187.03,187.02,129.42]
[1736564245085,8.93698323,187.03,187.02,153.196884]
[1736564245479,36.55026066,187.11,187.02,288.796884]
[1736564245665,8.93698323,187.04,187.02,288.796884]
[1736564246067,8.93698323,187.03,187.02,288.796884]
[1736564247089,8.93698323,187.03,187.02,240.676884]
[1736564247587,8.93698323,187.04,187.02,240.676884]
[1736564249058,8.93698323,187.05,187.03,248.788684]
[1736564249659,8.93698323,187.04,187.03,248.788684]
[1736564251186,8.93698323,187.04,187.03,225.0118]
[1736564252700,8.93698323,187.04,187.03,216.9]
[1736564253382,8.93698323,187.04,187.03,81.3]
[1736564255763,44.68491615,187.04,186.97,89.4118]
[1736564255963,8.93698323,186.98,186.97,81.3]
[1736564259290,8.93698323,186.98,186.95,48.16]
[1736564259472,8.93698323,186.96,186.95,48.16]
[1736564261310,8.93698323,186.96,186.92,225.0118]
[1736564262806,0.80232774,187.01,186.92,225.0118]
[1736564263008,8.93698323,186.94,186.92,225.0118]
[1736564263305,8.93698323,186.93,186.92,248.788684]
[1736564264176,8.93698323,186.93,186.92,225.0118]
[1736564264603,8.93698323,186.93,186.92,216.9]
[1736564268276,8.93698323,186.93,186.92,81.3]
[1736564278530,43.70512397,187.02,186.92,81.3]
[1736564278531,7.95719105,187.02,186.92,81.3]
[1736564278733,8.93698323,186.95,186.93,240.676884]
[1736564278911,8.93698323,186.94,186.93,81.3]
[1736564288419,20.0,187.0,186.93,105.076884]
[1736564288714,8.93698323,186.94,186.93,105.076884]
[1736564291141,0.80232774,187.01,186.93,240.676884]
[1736564291317,8.93698323,186.94,186.93,240.676884]
[1736564297358,8.93698323,186.94,186.93,216.9]
[1736564300433,8.93698323,186.94,186.9,85.82]
[1736564300639,8.93698323,186.91,186.9,85.82]
[1736564301143,8.93698323,186.91,186.9,81.3]
[1736564304327,8.93698323,186.91,186.9,105.076884]
[1736564310172,8.93698323,186.91,186.9,240.676884]
[1736564328544,8.93698323,186.92,186.9,240.676884]
[1736564328947,7.50196331,187.02,186.91,241.47920503]
[1736564329153,8.93698323,186.95,186.91,240.676884]
[1736564329377,1.5302,187.03,186.93,240.676884]
[1736564329555,8.93698323,186.98,186.97,23.776884]
[1736564329750,8.93698323,186.99,186.97,240.676884]
[1736564331374,8.93698323,186.98,186.97,240.676884]
[1736564334279,8.93698323,186.98,186.97,216.9]
[1736564334575,8.93698323,186.98,186.89,225.1088]
[1736564334877,8.93698323,186.9,186.89,229.6288]
[1736564335375,8.93698323,186.9,186.89,253.405684]
[1736564336878,8.93698323,186.9,186.89,246.808384]
[1736564337181,8.93698323,186.9,186.89,221.42]
[1736564337686,8.93698323,186.9,186.89,240.676884]
[1736564338272,8.93698323,186.91,186.9,23.776884]
[1736564340266,8.93698323,186.91,186.9,24.57921542]
[1736564340469,8.93698323,186.94,186.9,241.47921542]
[1736564340672,8.93698323,186.94,186.93,43.776884]
[1736564345889,8.93698323,186.94,186.93,23.776884]
[1736564346095,8.93698323,186.94,186.93,240.676884]
[1736564352076,8.93698323,186.94,186.93,81.3]
[1736564353112,44.68491615,186.94,186.93,81.3]
[1736564354099,8.93698323,186.94,186.93,81.3]
[1736564354506,3.78752408,187.02,186.94,240.676884]
[1736564354706,8.93698323,186.97,186.96,23.776884]
[1736564354869,8.93698323,186.97,186.96,240.676884]
[1736564359004,8.93698323,186.98,186.96,240.676884]
[1736564359204,8.93698323,186.99,186.96,240.676884]
[1736564359404,8.93698323,186.99,186.97,0.80199609]
[1736564359905,8.93698323,186.98,186.97,105.87888009]
[1736564360102,8.93698323,186.98,186.97,105.076884]
[1736564364080,8.93698323,186.98,186.97,240.676884]
[1736564366820,8.93698323,186.99,186.98,23.776884]
[1736564370011,8.93698323,186.99,186.98,240.676884]
[1736564374014,6.8584,187.06,186.98,240.676884]
[1736564374230,8.93698323,186.99,186.98,240.676884]
[1736564377747,8.93698323,186.99,186.98,216.9]
[1736564379108,8.93698323,186.99,186.98,81.3]
[1736564388341,8.93698323,186.99,186.93,81.3]
[1736564388635,8.93698323,186.94,186.93,81.3]
[1736564396032,8.93698323,186.94,186.9,140.12]
[1736564396033,44.68491615,186.94,186.9,216.9]
[1736564396218,8.93698323,186.91,186.9,216.9]
[1736564399962,8.93698323,186.91,186.9,81.3]
[1736564401367,5.3483,186.98,186.9,81.3]
[1736564401564,0.80232774,186.97,186.9,81.3]
[1736564401745,8.93698323,186.91,186.9,81.3]
[1736564402474,0.80232774,186.97,186.9,81.3]
[1736564402787,8.93698323,186.91,186.9,81.3]
[1736564414099,8.93698323,186.91,186.88,81.3]
[1736564414279,8.93698323,186.89,186.88,81.3]
[1736564414489,8.93698323,186.89,186.83,81.3]
[1736564414798,8.93698323,186.84,186.83,81.3]
[1736564415186,17.87396646,186.84,186.83,81.3]
[1736564415497,44.68491615,186.84,186.83,81.3]
[1736564417694,44.68491615,186.84,186.8,183.78]
[1736564417695,44.68491615,186.84,186.8,48.18]
[1736564417871,8.93698323,186.81,186.8,48.18]
[1736564418075,37.31703292,186.93,186.85,23.776884]
[1736564418278,8.93698323,186.86,186.85,240.676884]
[1736564418702,0.80232774,186.95,186.85,240.676884]
[1736564418899,0.80232774,186.96,186.86,24.57940589]
[1736564419079,8.93698323,186.88,186.86,105.87940589]
[1736564419273,8.93698323,186.88,186.86,105.076884]
[1736564419482,8.93698323,186.87,186.86,105.076884]
[1736564422690,8.93698323,186.87,186.86,81.3]
[1736564428713,44.68491615,186.87,186.81,81.3]
[1736564429014,8.93698323,186.82,186.81,81.3]
[1736564430698,8.93698323,186.82,186.8,48.18]
[1736564430902,8.93698323,186.81,186.8,48.18]
[1736564432217,35.74793292,186.84,186.8,48.18]
[1736564432524,8.93698323,186.81,186.8,48.18]
[1736564436306,8.93698323,186.81,186.78,81.3]
[1736564436625,8.93698323,186.79,186.78,81.3]
[1736564439903,35.74793292,186.84,186.79,23.776884]
[1736564440096,8.93698323,186.8,186.79,240.676884]
[1736564445366,8.93698323,186.8,186.79,216.9]
[1736564451051,8.93698323,186.8,186.79,81.3]
[1736564453056,8.93698323,186.8,186.75,82.9113]
[1736564453237,8.93698323,186.76,186.75,82.9113]
[1736564453554,8.93698323,186.76,186.75,81.3]
[1736564455254,7.52118522,186.89,186.79,23.776884]
[1736564455419,8.93698323,186.81,186.79,241.47965196]
[1736564455627,8.93698323,186.81,186.79,240.676884]
[1736564455955,8.32351296,186.89,186.79,240.676884]
[1736564456250,8.93698323,186.81,186.79,240.676884]
[1736564456458,2.30852774,186.9,186.79,240.676884]
[1736564456669,8.93698323,186.82,186.81,23.776884]
[1736564459850,8.93698323,186.82,186.81,240.676884]
[1736564462943,8.93698323,186.82,186.81,216.9]
[1736564465332,8.93698323,186.82,186.81,81.3]
[1736564465956,8.93698323,186.82,186.77,216.9]
[1736564466140,8.93698323,186.78,186.77,81.3]
[1736564469544,8.93698323,186.78,186.73,81.3]
[1736564469747,8.93698323,186.74,186.73,81.3]
[1736564472437,8.93698323,186.74,186.7,135.6]
[1736564472641,8.93698323,186.71,186.7,135.6]
[1736564474264,8.93698323,186.71,186.69,135.9834]
[1736564474773,8.93698323,186.71,186.69,129.52]
[1736564475151,8.93698323,186.7,186.69,129.52]
[1736564482076,2.12573172,186.78,186.7,23.776884]
[1736564482251,8.93698323,186.71,186.7,240.676884]
[1736564484079,8.93698323,186.71,186.7,216.9]
[1736564486770,8.93698323,186.71,186.7,81.3]
[1736564492784,8.93698323,186.71,186.65,216.9]
[1736564493085,8.93698323,186.66,186.65,240.676884]
[1736564495186,8.93698323,186.66,186.65,81.3]
[1736564495410,44.68491615,186.66,186.65,81.3]
[1736564495562,44.68491615,186.66,186.63,135.6]
[1736564495764,8.93698323,186.64,186.63,135.6]
[1736564496489,8.93698323,186.64,186.6,224.6953]
[1736564496667,8.93698323,186.61,186.6,224.6953]
[1736564496867,8.93698323,186.61,186.6,216.9]
[1736564499278,2.92323877,186.7,186.61,23.776884]
[1736564499484,2.34402774,186.71,186.61,160.18048623]
[1736564499664,8.93698323,186.63,186.61,240.676884]
[1736564500494,8.93698323,186.62,186.61,216.9]
[1736564501587,8.93698323,186.62,186.61,240.676884]
[1736564501802,5.355,186.74,186.65,20.0]
[1736564502103,5.355,186.74,186.65,236.9]
[1736564502104,8.93698323,186.66,186.65,236.9]
[1736564502305,8.93698323,186.68,186.65,236.9]
[1736564503903,8.93698323,186.67,186.65,236.9]
[1736564504081,8.93698323,186.68,186.66,23.776884]
[1736564504285,6.1615,186.78,186.68,23.776884]
[1736564504613,8.93698323,186.71,186.68,241.48009481]
[1736564504796,8.93698323,186.71,186.68,240.676884]
[1736564506603,8.93698323,186.69,186.68,240.676884]
[1736564509928,8.93698323,186.7,186.68,240.676884]
[1736564510216,8.93698323,186.71,186.7,23.776884]
[1736564510896,8.93698323,186.72,186.7,240.676884]
[1736564511094,8.93698323,186.71,186.7,240.676884]
[1736564513004,8.93698323,186.71,186.7,216.9]
[1736564516724,8.93698323,186.71,186.7,81.3]
[1736564520486,8.93698323,186.74,186.73,20.0]
[1736564520598,35.74793292,186.84,186.74,23.776884]
[1736564520806,8.93698323,186.76,186.75,0.80296573]
[1736564522008,41.10023292,186.84,186.75,136.40296573]
[1736564522228,8.93698323,186.76,186.75,135.6]
[1736564522425,41.10023292,186.84,186.75,240.676884]
[1736564522740,8.93698323,186.78,186.76,241.4797555]
[1736564523034,8.93698323,186.77,186.76,240.676884]
[1736564525313,8.93698323,186.77,186.76,216.9]
[1736564527010,8.93698323,186.77,186.71,4.52]
[1736564527215,8.93698323,186.72,186.71,221.42]
[1736564527437,8.93698323,186.72,186.71,245.196884]
[1736564527914,8.93698323,186.72,186.71,85.82]
[1736564528938,8.93698323,186.72,186.71,81.3]
[1736564530637,8.93698323,186.72,186.69,135.6]
[1736564530847,8.93698323,186.7,186.69,135.6]
[1736564533339,8.93698323,186.7,186.68,140.12]
[1736564533537,8.93698323,186.69,186.68,140.12]
[1736564534721,8.93698323,186.69,186.68,135.6]
[1736564535748,8.93698323,186.69,186.65,140.12]
[1736564535949,8.93698323,186.67,186.65,140.12]
[1736564537133,41.10283292,186.75,186.66,160.18022876]
[1736564537134,8.93698323,186.68,186.66,160.18022876]
[1736564537338,8.93698323,186.68,186.66,159.376884]
[1736564537534,8.93698323,186.68,186.67,23.776884]
[1736564540735,8.93698323,186.68,186.67,240.676884]
[1736564541839,8.93698323,186.68,186.67,216.9]
[1736564546667,8.93698323,186.68,186.67,81.3]
[1736564550765,8.93698323,186.68,186.65,135.6]
[1736564551069,8.93698323,186.66,186.64,81.3]
[1736564551271,8.93698323,186.65,186.64,81.3]
[1736564555391,8.93698323,186.65,186.59,8.0415]
[1736564555692,8.93698323,186.6,186.59,4.54]
[1736564555863,8.93698323,186.6,186.58,48.24]
[1736564556183,8.93698323,186.59,186.58,48.24]
[1736564561010,8.93698323,186.59,186.56,23.776884]
[1736564562395,8.93698323,186.57,186.56,24.58064012]
[1736564562597,8.93698323,186.58,186.56,24.58064012]
[1736564563702,8.93698323,186.58,186.56,23.776884]
[1736564564795,8.93698323,186.57,186.55,85.84]
[1736564564982,8.93698323,186.56,186.55,109.616884]
[1736564565496,8.93698323,186.56,186.55,85.84]
[1736564565697,8.93698323,186.56,186.53,140.14]
[1736564565915,8.93698323,186.54,186.53,48.316884]
[1736564567084,8.93698323,186.54,186.53,43.776884]
[1736564568197,8.93698323,186.54,186.53,44.58076174]
[1736564568385,6.16032774,186.64,186.53,44.58076174]
[1736564568585,8.93698323,186.55,186.53,44.58076174]
[1736564569699,8.93698323,186.54,186.53,43.776884]
[1736564572008,8.93698323,186.54,186.51,4.54]
[1736564572179,8.93698323,186.52,186.51,4.54]
[1736564572907,8.93698323,186.52,186.51,28.316884]
[1736564573115,8.93698323,186.52,186.51,23.776884]
[1736564573613,8.93698323,186.52,186.5,87.7362]
[1736564573813,8.93698323,186.51,186.5,85.84]
[1736564573991,8.93698323,186.51,186.5,109.616884]
[1736564574816,8.93698323,186.51,186.5,105.076884]
[1736564577391,8.93698323,186.51,186.5,81.3]
[1736564578198,8.93698323,186.51,186.5,105.076884]
[1736564580734,7.51125253,186.6,186.51,23.776884]
[1736564581029,8.93698323,186.55,186.51,24.58083221]